Cogmind - Beta 11.1 *** ADVENTURER MODE // 2022.08.23 @ 22:34:07 Player: Cruxius Result: Destroyed by S-27 Virus with Autogun Performance ------------- Evolutions (3) 1500 Regions Visited (5) 1000 Robots Destroyed (115) 575 Value Destroyed (4188) 4188 Prototype IDs (8) 160 Alien Tech Used (0) 0 Bonus (0) 0 TOTAL SCORE: 7423 Bonus ------- None Cogmind --------- Core Integrity 0/700 Matter 260/300 Energy 80/100 System Corruption 12% Temperature Cool (0) Movement Core (1350) Ox26 Location -7/Factory Parts ------- > --- POWER (1) -------- (None) > --- PROPULSION (4) --- (None) > --- UTILITY (6) ------ Huge Storage Unit Advanced Visual Processing Unit > --- WEAPON (2) ------- Mini Grenade Launcher > --- INVENTORY (25) --- Micro Nuclear Core Carbon-fiber Leg Armored Huge Wheel VTOL Module Improved Heat Sink Improved Cooling System Huge Storage Unit Medium Battery (150) Structural Scanner Energy Filter Tractor Beam Long-range Tractor Beam Particle Gun Particle Gun Improved EM Pulse Cannon Gauss Cannon Grenade Launcher Rocket Launcher Mini Grenade Launcher Improved Datajack Greatsword Peak State ------------ > --- POWER ------------ Deuterium Engine > --- PROPULSION ------- Aluminum Leg Aluminum Leg Aluminum Leg Aluminum Leg > --- UTILITY ---------- Huge Storage Unit Advanced Visual Processing Unit Improved Sensor Array Improved Signal Interpreter Energy Filter High-powered Tractor Beam > --- WEAPON ----------- Heavy Laser Heavy Laser > --- INVENTORY -------- Ion Engine Micro Nuclear Core Aluminum Leg Armored Huge Wheel Armored Huge Wheel Armored Huge Wheel Armored Huge Wheel Huge Storage Unit Medium Battery Tractor Beam Long-range Tractor Beam Particle Gun Autogun Grenade Launcher Rocket Launcher Mini Grenade Launcher Mini Grenade Launcher Improved Grenade Launcher Improved Datajack [Rating: 37] Favorites ----------- Power Deuterium Engine Engine Deuterium Engine Power Core Light Nuclear Core Propulsion Aluminum Leg Treads Light Treads Leg Aluminum Leg Wheel Wheel Hover Unit Hover Unit Utility Huge Storage Unit Device Improved Sensor Array Storage Huge Storage Unit Processor Advanced Visual Processing Unit Protection Improved Light Armor Plating Weapon Heavy Laser Energy Gun Heavy Laser Ballistic Gun High-powered Shotgun Ballistic Cannon Light Cannon Launcher Grenade Launcher Build | -11 -10 -9 -8 -8 -7 ------- Run | Scr Mat Mat Mat Sto Fac Slots Evolved 6 | . . 2 2 . 2 Power . | . . . . . . Propulsion 2 | . . 1 1 . . Utility 4 | . . 1 1 . 2 Weapon . | . . . . . . Parts Attached 104 | 5 16 8 16 15 44 Power 13 | 1 . 4 2 2 4 Engine 11 | 1 . 4 1 2 3 Core 2 | . . . 1 . 1 Reactor . | . . . . . . Propulsion 35 | 2 7 1 6 5 14 Treads 1 | . 1 . . . . Leg 27 | . 4 1 6 5 11 Wheel 5 | 2 . . . . 3 Hover 2 | . 2 . . . . Flight . | . . . . . . Utility 27 | . 5 2 7 4 9 Device 9 | . 1 1 2 . 5 Storage 6 | . 3 . 3 . . Processor 2 | . . . . . 2 Hackware . | . . . . . . Protection 10 | . 1 1 2 4 2 Artifact . | . . . . . . Weapon 29 | 2 4 1 1 4 17 Energy Gun 10 | 1 1 . . 1 7 Energy Cannon . | . . . . . . Ballistic Gun 9 | 1 1 1 1 1 4 Ballistic Cannon 2 | . 1 . . 1 . Launcher 8 | . 1 . . 1 6 Special Weapon . | . . . . . . Impact Weapon . | . . . . . . Slashing Weapon . | . . . . . . Piercing Weapon . | . . . . . . Special Melee Weapon . | . . . . . . Unidentified Prototypes 1 | . . . . . 1 Parts Lost 56 | . 3 . 3 14 36 Power 6 | . . . . 2 4 Propulsion 22 | . 2 . 1 4 15 Utility 16 | . . . 2 4 10 Weapon 12 | . 1 . . 4 7 Highest Loss Streak 11 | . 1 . 1 6 11 To Critical Strikes 1 | . . . . 1 . Average Slot Usage (%) 87 | . 96 96 98 74 84 Engine 8 | . 14 11 9 5 6 Leg 21 | . 9 30 35 18 21 Wheel 2 | . 10 . . . . Device 9 | . 2 3 10 4 15 Storage 9 | . 14 11 11 9 7 Processor 3 | . . . . . 10 Protection 12 | . 10 18 14 19 7 Energy Gun 7 | . 17 1 . . 9 Ballistic Gun 4 | . 3 10 9 7 1 Ballistic Cannon 4 | . 3 11 9 7 . Launcher 1 | . 3 . . . 1 Naked Turns . | . . . . . . Heaviest Build 176 | 6 90 101 176 106 115 Greatest Support 45 | 20 20 30 45 45 40 Greatest Overweight (x) 27 | . 8 4 4 27 5 Average Overweight (x) 2 | . 3 3 2 4 2 Largest Inventory Capacity 25 | 5 25 25 25 25 25 Average Capacity 23 | 5 19 25 25 25 25 Most Carried 25 | 5 22 25 25 25 25 Average Carried 20 | 2 14 21 22 22 22 Final Capacity 25 | 5 25 25 25 25 25 Final Carried 23 | 3 22 22 22 19 23 Class Distribution -------------------- 55% | Mutant 30% | Scavenger-Mutant 13% | Scavenger-Skirmisher Dominant Class ---------------- Mutant | -10/Materials Mutant | -9/Materials Mutant | -8/Materials Mutant | -8/Storage Scavenger-Mutant | -7/Factory Resources | -11 -10 -9 -8 -8 -7 ----------- Run | Scr Mat Mat Mat Sto Fac Matter Collected 2613 | 212 237 53 500 599 1012 Remotely 712 | . . . . . 712 Salvage Created 3614 | 42 370 112 648 1201 1241 Parts 211 | 2 31 7 38 61 72 Haulers Intercepted 1 | . . . . . 1 Recyclers Shooed 4 | . . . 1 1 2 Parts Field Recycled . | . . . . . . Retrieved Matter . | . . . . . . Parts Self-Destructed . | . . . . . . Prevented . | . . . . . . Kills | -11 -10 -9 -8 -8 -7 ------- Run | Scr Mat Mat Mat Sto Fac Combat Hostiles Destroyed 98 | 1 8 3 16 26 44 Guns 41 | 1 6 2 9 11 12 Cannons 22 | . . 1 7 14 . AOE 35 | . 2 . . 1 32 Classes Destroyed 14 | 1 1 1 1 3 7 Worker 7 | . . . . 1 6 Builder 1 | . . . . . 1 Hauler 1 | . . . . . 1 Recycler 6 | . . . . 4 2 Operator 1 | . . . . . 1 Watcher 9 | . 3 . 2 2 2 Swarmer 16 | . . . . 4 12 Grunt 52 | 1 8 2 14 14 13 Brawler 1 | . . . 1 . . Sentry 11 | . . 1 1 8 1 Demolisher 2 | . . . . . 2 Hunter 3 | . . . . . 3 Programmer 5 | . . . . . 5 Assembled 8 | . . . . . 8 Best Kill Streak 13 | 1 3 2 8 10 13 Combat Bots Only 9 | 1 2 2 8 5 9 Max Kills in Single Turn 5 | 1 1 1 2 2 5 Gunslinging . | . . . . . . Exploded 3 | . 1 . . 1 3 Melee . | . . . . . . Uniques/NPCs Destroyed . | . . . . . . Combat | -11 -10 -9 -8 -8 -7 -------- Run | Scr Mat Mat Mat Sto Fac Damage Taken 6805 | 34 403 374 702 1550 3742 Core 1245 | 9 125 71 28 303 709 Absorbed by Shields . | . . . . . . Redirected to Shielding 19 | . 4 15 . . . Core Remaining (%) 65 | 96 46 82 . 39 . Volleys Fired 276 | 3 35 9 42 73 114 Largest 2 | 2 2 2 2 2 2 Hottest 138 | 70 115 58 60 93 138 Shots Fired 455 | 6 68 18 84 114 165 Gun 303 | 6 65 9 42 56 125 Cannon 108 | . 1 9 42 56 . Launcher 44 | . 2 . . 2 40 Special . | . . . . . . Kinetic 274 | 3 22 18 84 110 37 Thermal 137 | 3 44 . . 2 88 Explosive 44 | . 2 . . 2 40 Electromagnetic . | . . . . . . Robot Hit Streak 33 | 3 13 9 16 18 33 Robot Miss Streak 3 | 1 3 2 2 3 2 Penetration Max . | . . . . . . Secondary Targets 2 | . 1 . . . 1 Max Gunslinging Chain 1 | . 1 . . . 1 Shots Hit Robots 359 | 5 49 12 69 89 135 Core Hits 252 | 2 23 4 40 59 124 Critical Kills . | . . . . . . Critical Parts Destroyed 3 | . . . 1 2 . Critical Strikes 9 | . . . 5 2 2 Burn 2 | . . . . . 2 Destroy 3 | . . . 1 2 . Blast 4 | . . . 4 . . Melee Attacks . | . . . . . . Impact . | . . . . . . Slashing . | . . . . . . Piercing . | . . . . . . Sneak Attacks . | . . . . . . Combat Hostiles . | . . . . . . Follow-up Attacks . | . . . . . . Damage Inflicted 10345 | 54 712 194 1353 2184 5848 Guns 4472 | 54 563 110 732 1191 1822 Cannons 1604 | . . 84 599 921 . Explosions 4164 | . 140 . . 52 3972 Melee . | . . . . . . Ramming 105 | . 9 . 22 20 54 Kinetic 4197 | 17 127 194 1331 2076 452 Thermal 1879 | 37 436 . . 36 1370 Explosive 4164 | . 140 . . 52 3972 Electromagnetic . | . . . . . . Impact . | . . . . . . Slashing . | . . . . . . Piercing . | . . . . . . Highest Corruption 12 | . 1 1 . . 12 Average Corruption 4 | . 1 1 . . 6 Corruption Purged . | . . . . . . Corruption Blocked . | . . . . . . Effects 75 | . 6 3 . . 66 Message Errors 24 | . 2 1 . . 21 Matter Fused 17 | . 2 1 . . 14 Heat Flow Errors 7 | . . 1 . . 6 Energy Discharges 8 | . 2 . . . 6 Parts Rejected 2 | . . . . . 2 Data Loss (minor) 6 | . . . . . 6 Data Loss (major) 1 | . . . . . 1 Misfires 6 | . . . . . 6 Misdirections 2 | . . . . . 2 Weapon Failures 2 | . . . . . 2 Overload Shots . | . . . . . . Overflow Damage 258 | . . . . 13 245 Projectiles 13 | . . . . 13 . Explosions 245 | . . . . . 245 Melee . | . . . . . . Knockbacks 25 | . . 1 16 7 1 Impact 1 | . . . . . 1 Kinetic 21 | . . 1 13 7 . Secondary 3 | . . . 3 . . Self-Inflicted Damage 582 | . . . 165 33 384 Shots 12 | . . . 2 1 9 Rammed 5 | . . . . . 5 Targets Rammed 19 | . 1 . 5 4 9 Kicked 14 | . 1 . 5 4 4 Crushed . | . . . . . . Highest Temperature 454 | 74 160 122 7 87 454 Average Temperature 85 | 42 61 46 4 37 110 Received Heat Transfer 2514 | 24 267 165 405 765 888 Effects 8 | . . . . . 8 Shutdowns 2 | . . . . . 2 Interference 1 | . . . . . 1 Matter Decay 1 | . . . . . 1 Short Circuit 1 | . . . . . 1 Damage (minor) 1 | . . . . . 1 Damage (major) 2 | . . . . . 2 Siege Activations . | . . . . . . Robots Corrupted . | . . . . . . Combat Hostiles . | . . . . . . Parts Fried . | . . . . . . Impact Corruptions . | . . . . . . Robots Melted . | . . . . . . Combat Hostiles . | . . . . . . Parts Melted 18 | . 2 . . . 16 Heat Transferred 4107 | 111 1184 . . 74 2738 Parts Sabotaged . | . . . . . . Parts Stolen . | . . . . . . Parts Stripped . | . . . . . . Power Chain Reactions . | . . . . . . Missiles Intercepted . | . . . . . . Alert | -11 -10 -9 -8 -8 -7 ------- Run | Scr Mat Mat Mat Sto Fac Peak Influence 390 | 20 207 77 186 390 390 Initial 70 | . 11 . 16 47 70 Average 107 | 2 53 31 93 245 95 Maximum Alert Level 1 | . 1 . . 1 1 Low Security (%) 82 | 100 99 100 100 23 88 Level 1 17 | . . . . 76 11 Level 2 . | . . . . . . Level 3 . | . . . . . . Level 4 . | . . . . . . Level 5 . | . . . . . . High Security . | . . . . . . Max Security . | . . . . . . Squads Dispatched 27 | . 2 1 4 8 12 Investigation 6 | . 2 . 2 1 1 Extermination 5 | . . . . . 5 Reinforcement 10 | . . 1 2 2 5 Assault . | . . . . . . Garrison 6 | . . . . 5 1 Intercept . | . . . . . . Searches Triggered . | . . . . . . Construction Impeded 3 | . . . 1 . 2 Haulers Reinforced . | . . . . . . Active Scanning Responses . | . . . . . . Cargo Convoy Interrupts . | . . . . . . Stealth | -11 -10 -9 -8 -8 -7 --------- Run | Scr Mat Mat Mat Sto Fac Distress Signals 6 | . 1 2 . 3 . Communications Jammed . | . . . . . . Distress Signals . | . . . . . . Times Spotted 138 | 1 15 7 19 34 62 Peak Tracking Total 7 | 1 4 3 6 5 7 Tactical Retreats 4 | . . . . 4 . Traps | -11 -10 -9 -8 -8 -7 ------- Run | Scr Mat Mat Mat Sto Fac Traps Triggered 8 | . 5 1 . 1 1 Indirectly . | . . . . . . Trap Hack Attempts . | . . . . . . Triggered . | . . . . . . Disarmed . | . . . . . . Reprogrammed . | . . . . . . Reused . | . . . . . . Traps Extracted . | . . . . . . Installed . | . . . . . . Triggered . | . . . . . . Machines | -11 -10 -9 -8 -8 -7 ---------- Run | Scr Mat Mat Mat Sto Fac Machines Disabled 10 | . . . 2 . 8 Max in Single Turn 2 | . . . 2 . 2 Machines Sabotaged . | . . . . . . Garrisons Compromised . | . . . . . . Overloaded Fab Kills . | . . . . . . Hacking | -11 -10 -9 -8 -8 -7 --------- Run | Scr Mat Mat Mat Sto Fac Machines Accessed 16 | . 7 1 3 2 3 Terminals 12 | . 5 1 3 1 2 Fabricators . | . . . . . . Repair Stations . | . . . . . . Recycling Units 4 | . 2 . . 1 1 Scanalyzers . | . . . . . . Garrison Access . | . . . . . . Total Hacks 49 | . 25 6 8 2 8 Successful 35 | . 19 3 5 2 6 Failed 14 | . 6 3 3 . 2 Catastrophic 1 | . 1 . . . . Database Lockouts . | . . . . . . Manual . | . . . . . . Terminals 32 | . 15 6 8 1 2 Fabricators . | . . . . . . Repair Stations . | . . . . . . Recycling Units 17 | . 10 . . 1 6 Scanalyzers . | . . . . . . Garrison Access . | . . . . . . Terminal Hacks 23 | . 12 3 5 1 2 Record 8 | . 6 1 . . 1 Prototype ID Bank 3 | . 1 . 1 . 1 Open Door 1 | . . . . 1 . Branch Access Points 2 | . 1 . 1 . . Machine Index 1 | . 1 . . . . Terminal Index 1 | . . 1 . . . Alert Level 1 | . 1 . . . . Locate Traps 2 | . 1 . 1 . . Zone Layout 4 | . 1 1 2 . . Fabricator Hacks . | . . . . . . Repair Station Hacks . | . . . . . . Recycling Unit Hacks 12 | . 7 . . 1 4 Recycle Component 2 | . . . . . 2 Process 3 | . 1 . . 1 1 Report Inventory 1 | . 1 . . . . Retrieve Matter 1 | . 1 . . . . Retrieve Components 5 | . 4 . . . 1 Scanalyzer . | . . . . . . Garrison Access Hacks . | . . . . . . Unauthorized Hacks . | . . . . . . Terminals . | . . . . . . Fabricators . | . . . . . . Repair Stations . | . . . . . . Recycling Units . | . . . . . . Scanalyzers . | . . . . . . Garrison Access . | . . . . . . Data Cores Recovered 1 | . . . . . 1 Used . | . . . . . . Hacking Detections 11 | . 6 1 2 . 2 Full Trace Events 8 | . 4 1 2 . 1 Feedback Events . | . . . . . . Feedback Blocked . | . . . . . . Robot Schematics Acquired . | . . . . . . Robots Built . | . . . . . . Authchips . | . . . . . . Time . | . . . . . . Total Robot Build Rating . | . . . . . . Part Schematics Acquired . | . . . . . . Parts Built . | . . . . . . Authchips . | . . . . . . Time . | . . . . . . Total Part Build Rating . | . . . . . . Parts Repaired . | . . . . . . Time . | . . . . . . Parts Recycled 2 | . . . . . 2 Recycled Matter 362 | . 176 . . 176 10 Retrieved Matter 284 | . 284 . . . . Retrieved Components 2 | . 2 . . . . Parts Scanalyzed . | . . . . . . Part Schematics Acquired . | . . . . . . Parts Damaged . | . . . . . . Bothacking | -11 -10 -9 -8 -8 -7 ------------ Run | Scr Mat Mat Mat Sto Fac Used RIF Installer . | . . . . . . Robots Hacked . | . . . . . . Non-combat . | . . . . . . Combat . | . . . . . . Robot Hacks Applied . | . . . . . . Relay Couplers Released . | . . . . . . Fabnet Peak Effective % . | . . . . . . Robots Rewired . | . . . . . . Allies Hacked . | . . . . . . Hacks Repelled . | . . . . . . Allies | -11 -10 -9 -8 -8 -7 -------- Run | Scr Mat Mat Mat Sto Fac Total Allies . | . . . . . . Largest Group . | . . . . . . Highest-Rated Group . | . . . . . . Highest-Rated Ally . | . . . . . . Total Orders . | . . . . . . Ally Attacks . | . . . . . . Total Damage . | . . . . . . Kills . | . . . . . . Allies Corrupted . | . . . . . . Allies Melted . | . . . . . . Intel | -11 -10 -9 -8 -8 -7 ------- Run | Scr Mat Mat Mat Sto Fac Robot Analysis Total . | . . . . . . Derelict Logs Recovered . | . . . . . . Drone Launches 4 | . . . . . 4 Drone Recoveries 2 | . . . . . 2 Exploration | -11 -10 -9 -8 -8 -7 ------------- Run | Scr Mat Mat Mat Sto Fac Turns Passed 7409 | 79 1415 663 1090 1317 2845 Spaces Moved 2401 | 83 703 175 321 267 852 Core 31 | 30 . . . 1 . Treads 60 | . 60 . . . . Legs 1566 | . 107 175 321 266 697 Wheels 744 | 53 536 . . . 155 Hover . | . . . . . . Flight . | . . . . . . Fastest Speed 50 | 50 80 330 260 260 130 Average Speed 262 | 69 179 346 281 404 280 Slowest Speed 1400 | 80 400 400 400 1400 470 Overloaded Moves . | . . . . . . Propulsion Burnouts . | . . . . . . Robots Hopped . | . . . . . . Cave-ins Triggered . | . . . . . . Exploration Rate (%) 29 | 6 70 20 23 39 20 Regions Visited 5 Branch Regions 1 Pre-discovered Areas . | . . . . . . Known Exits Taken 1 | . . . 1 . . Unknown Exits Taken 4 | 1 1 1 . 1 . Scrap Searched . | . . . . . . Spaces Dug . | . . . . . . Terrain Destroyed 253 | . 17 . 34 28 174 Melee . | . . . . . . Projectile 4 | . . . . 4 . AOE 249 | . 17 . 34 24 174 Terrain Rammed . | . . . . . . Walls Destroyed . | . . . . . . Machines Disabled . | . . . . . . Actions | -11 -10 -9 -8 -8 -7 --------- Run | Scr Mat Mat Mat Sto Fac Total 3029 | 98 786 217 421 376 1131 Wait 85 | . 4 8 3 1 69 Move 2396 | 82 702 174 320 266 852 Hop . | . . . . . . Pick Up 114 | 8 25 10 20 14 37 Fast Attach 1 | . . . . . 1 Attach 64 | 5 7 2 5 14 31 Detach 4 | . 2 . . . 2 Swap 39 | . 9 6 11 1 12 Drop 31 | . 1 8 15 3 4 Fire 276 | 3 35 9 42 73 114 Melee . | . . . . . . Ram 5 | . . . . . 5 Kick 14 | . 1 . 5 4 4 Crush . | . . . . . . Escape Stasis . | . . . . . . Rewire . | . . . . . . Trap . | . . . . . . Miscellaneous . | . . . . . . Route ------- -11/Scrapyard -10/Materials (discovered 4 exits: *Mat x2 / *Min x2) -9/Materials -8/Materials (discovered 3 exits: *Fac / *Sto x2) -8/Storage -7/Factory History --------- Turn | Location | Event 2 | -11/Scrapyard | Met Revision 17 61 | -11/Scrapyard | Discovered new exit (range 8) 80 | -11/Scrapyard | Entered Materials 202 | -10/Materials | Discovered new exit (range 5) 240 | -10/Materials | Discovered new exit (range 13) 311 | -10/Materials | Build established: Mutant 512 | -10/Materials | Discovered new exit (range 4) 646 | -10/Materials | Core integrity fell below 50% 991 | -10/Materials | Identified exit to Mines 1495 | -10/Materials | Entered another Materials area 1495 | -9/Materials | Evolved 2 slots: Propulsion x1, Utility x1 2026 | -9/Materials | Discovered new exit (range 5) 2158 | -9/Materials | Entered another Materials area 2158 | -8/Materials | Evolved 2 slots: Propulsion x1, Utility x1 2678 | -8/Materials | Identified exit to Storage 2800 | -8/Materials | Destroyed 8 combat bots 3134 | -8/Materials | Build established: Scavenger-Mutant 3181 | -8/Materials | Discovered new exit (range 5) 3248 | -8/Materials | Entered Storage 3496 | -8/Storage | Garrison activated, responded to threat 3694 | -8/Storage | Garrison activated, responded to threat 3870 | -8/Storage | Garrison activated, responded to threat 3995 | -8/Storage | Build established: Mutant 4352 | -8/Storage | Discovered new exit (range 16) 4446 | -8/Storage | Core integrity fell below 50% 4474 | -8/Storage | Lost 6 parts (1p1n2u2w) 4565 | -8/Storage | Entered Factory 4565 | -7/Factory | Evolved 2 slots: Utility x2 4838 | -7/Factory | Build established: Scavenger-Mutant 5076 | -7/Factory | Assembled infested ambush trap array 5155 | -7/Factory | Destroyed 9 combat bots 5168 | -7/Factory | Lost 11 parts (1p4n5u1w) 5321 | -7/Factory | Lost 3 parts (1p2n) 5783 | -7/Factory | Build established: Scavenger-Skirmisher 6280 | -7/Factory | Build established: Scavenger-Mutant 6883 | -7/Factory | Core integrity fell below 50% 6883 | -7/Factory | System corruption reached 10% 6956 | -7/Factory | Build established: Scavenger-Skirmisher 7171 | -7/Factory | Garrison activated, responded to threat 7211 | -7/Factory | Destroyed 7 combat bots 7244 | -7/Factory | Lost 8 parts (1p3n2u2w) 7382 | -7/Factory | Core integrity fell below 20% 7410 | -7/Factory | Destroyed by S-27 Virus with Autogun Last Messages --------------- K-01 Serf collects debris. U-05 Engineer lays Concrete. K-01 Serf collects debris. U-05 Engineer lays Concrete. Ion Engine destroyed. Imp. Sensor Array destroyed. System corrupted: FCS attempts to trigger Autogun. System corrupted: Autogun misfires. VSS Leg destroyed. Autogun destroyed. Imp. Medium Armor Plating destroyed. G-47 Trooper destroyed. Arm. Huge Wheel destroyed. K-01 Serf collects debris. Assault Rifle destroyed. [Achievement: First Step to Greatness] Important note for Steam players: Cogmind player global achievement rates displayed by Steam are all significantly underreported, in some cases by a huge margin, due to how they are calculated by Valve. [Achievement: 5k Club] Map ----- +----------------------------------------------------+ | #?????? #?????????????????????????????? | | #????? #?????????????????????????????? | | #??? #?????????????????????????????? | | #??? ??????????????????????????????? | | #?? ??????????????????????????????? | | ######+##+##?? ???????????????????????????????? | | ?????? ## #??? ????????????????????????????????? | | ?????? ## #??? ?????????????????????????????????? | | ###### ## ####+#########?????????????????????????? | | # # ## +??????????????????????? | | # "" # ## ######????????????????????????????? | | # "T # ## #?????????????????????????????????? | | # "" # ## #?????????????????????????????????? | | + # ## #?????????????????????????????????? | | # # ## #?????????????????????????????????? | | # # ## #?????????????????????????????????? | | # # ## ##????????????????????????????????? | | # # T#????????????????????????????????? | | ###### r #????????????????????????????????? | | ##????????????????????????????????? | | #########+#############+####??????? | | ?????? | | ! ?????? | | ????? | | sl= k ????? | | t *%@ u ????? | | ########################### #????????? | | ####????????????????????????????????????????? | | ######???????????????????????????????????????????? | | ?????????????????????????????????????????????????? | | ?????????????????????????????????????????????????? | | ?????????????????????????????????????????????????? | | ?????????????????????????????????????????????????? | | ?????????????????????????????????????????????????? | | ?????????????????????????????????????????????????? | | ?????????????????????????????????????????????????? | | ?????????????????????????????????????????????????? | | ?????????????????????????????????????????????????? | | ?????????????????????????????????????????????????? | | ?????????????????????????????????????????????????? | | ?????????????????????????????????????????????????? | | ?????????????????????????????????????????????????? | | ?????????????????????????????????????????????????? | | ?????????????????????????????????????????????????? | | ?????????????????????????????????????????????????? | | ?????????????????????????????????????????????????? | | ?????????????????????????????????????????????????? | | ?????????????????????????????????????????????????? | | ?????????????????????????????????????????????????? | | ?????????????????????????????????????????????????? | +----------------------------------------------------+ Best States ------------- Heat Dissipation 50 Energy Generation 14 Energy Capacity 275 Matter Stores 300 Matter Capacity 300 Sight Range 20 Robot Scan Range 15 Terrain Scan Density 10 ECM Strength 1 Armor Coverage 450 Resistance: KI 20 Resistance: TH 20 Resistance: EX 20 Resistance: EM 20 Resistance: I 20 Resistance: S 20 Resistance: P 20 Core Shielding 20 Evasion (%) 50 Recoil Reduction 1 Energy Filtering 30 Offensive Hacking 10 Item Schematics ----------------- None Robot Schematics ------------------ None Fabricated ------------ Nothing Alien Tech Used ----------------- None Achievements -------------- 5k Club Crack Shot First Step to Greatness I Spy Let's See Who's Tougher Loot Pinata Made in Tau Ceti IV Novice Programmer One Hack Too Far Remodeling Risk Taker System Compromised Tank Troublemaker Uninvited Guest Use The Force Challenges ------------ None Game ------ Seed WardroneFieldThruster Manual? 0 Play Time 01:38:20 Cumulative 3.2 hours Start 2022.08.19 @ 22:43:44 End 2022.08.23 @ 22:34:07 Sessions 13 Manual Loads 0 Difficulty Adventurer Special Mode None Game No. 1 Rogue 0 Adventurer 1 Explorer 0 Win Type - Total 0 Types 0/0/0/0/0/0/0/0/0 Lore% 0 Gallery% 4 Achievement% 6 Wizard Run 0 Options --------- ASCII 0 Keyboard 0 Movement Numpad Keybinds 0 Fullscreen 2 Font 18/SmallcapsGlow Map View 76x50 Tactical HUD 0 Map Filters NONE Filters NONE Steam 1 RUN: bfbdb2c5-c02a-481e-85bb-2c0857c993c2